[Event "EYCC Girls-U12 2019"]
[Site "Bratislava"]
[Date "2019.08.10"]
[Round "9.13"]
[White "Komissarova, Soigina"]
[Black "Chicarosie, Ioana-Bianca"]
[Result "1-0"]
[ECO "C14"]
[WhiteElo "1663"]
[BlackElo "1580"]
[Annotator "NA RC"]
[PlyCount "151"]
[EventDate "2019.08.02"]
[EventType "swiss"]
[EventCountry "SVK"]
[SourceTitle "playchess.com"]
[Source "ChessBase"]
[SourceQuality "1"]
[TimeControl "40/5400+30:1800+30"]

1. e4 {[%emt 0:00:00]} e6 {[%emt 0:00:00]} 2. d4 {[%emt 0:00:13]} d5 {[%emt 0:00:00]} 3. Nc3 {[%emt 0:00:36]} Nf6 {[%emt 0:00:13]} 4. Bg5 {[%emt 0:00:46]} Be7 {[%emt 0:01:00]} 5. e5 {[%emt 0:00:39]} Nfd7 {[%emt 0:00:34]} 6. Bxe7 {[%emt 0:00:48]} Qxe7 {[%emt 0:00:08]} 7. Qg4 {[%emt 0:00:54]} g6 {[%emt 0:02:57]} 8. h4 {[%emt 0:02:01]} a6 {[%emt 0:03:51]} 9. Nf3 {[%emt 0:04:25]} c5 {[%emt 0:03:15]} 10. dxc5 {[%emt 0:09:06]} Nxc5 {[%emt 0:00:35]} 11. Nxd5 {[%emt 0:00:51]} Qd8 {[%emt 0:10:37]} 12. Nf6+ {[%emt 0:01:08]} Kf8 {[%emt 0:01:21]} 13. Be2 {[%emt 0:02:56]} Qe7 {[%emt 0:08:18]} 14. O-O {[%emt 0:01:42]} Nbd7 {[%emt 0:03:07]} 15. Qf4 {[%emt 0:01:44]} Kg7 {[%emt 0:08:41]} 16. Ng4 {[%emt 0:09:44]} h6 {[%emt 0:05:55]} 17. Rfd1 {[%emt 0:06:26]} b5 {[%emt 0:02:53]} 18. Rd4 {[%emt 0:01:25]} Bb7 {[%emt 0:05:13]} 19. Rad1 {[%emt 0:03:46]} Nb6 {[%emt 0:06:12]} 20. Ne3 {[%emt 0:09:16]} Nd5 {[%emt 0:08:55]} 21. Nxd5 {[%emt 0:01:31]} Bxd5 {[%emt 0:00:34]} 22. c4 {[%emt 0:03:41]} bxc4 {[%emt 0:06:11]} 23. Bxc4 {[%emt 0:00:34]} Bc6 {[%emt 0:03:30]} 24. b3 {[%emt 0:06:40]} a5 {[%emt 0:02:47]} 25. Nh2 {[%emt 0:13:00]} Rac8 {[%emt 0:04:53]} 26. Qe3 {[%emt 0:06:51]} h5 {[%emt 0:02:39]} 27. Be2 {[%emt 0:04:29]} Nb7 {[%emt 0:01:18]} 28. Nf3 {[%emt 0:02:19]} Rcd8 {[%emt 0:00:42]} 29. Ng5 {[%emt 0:02:03]} Rxd4 {[%emt 0:01:30]} 30. Rxd4 {[%emt 0:00:11]} Rd8 {[%emt 0:00:30]} 31. Rf4 {[%emt 0:01:19]} Rf8 {[%emt 0:00:29]} 32. Rf6 {[%emt 0:02:06]} Nc5 {[%emt 0:01:46]} 33. Qg3 {[%emt 0:01:03]} Be4 {[%emt 0:04:29]} 34. Rf4 {[%emt 0:01:07]} Bf5 {[%emt 0:00:40]} 35. Bxh5 {[%emt 0:01:03]} Nd3 {[%emt 0:00:54]} 36. Rd4 {[%emt 0:00:25]} Qc7 {[%emt 0:00:48]} 37. Nf3 {[%emt 0:00:38]} Kh7 {[%emt 0:00:23]} 38. Bg4 {[%emt 0:00:40]} Bxg4 {[%emt 0:00:39]} 39. Rxg4 {[%emt 0:00:17]} Rc8 {[%emt 0:00:28]} 40. Ng5+ {[%emt 0:00:00]} Kg7 {[%emt 0:00:00]} 41. Qxd3 {[%emt 0:04:46]} Qxe5 {[%emt 0:00:51]} 42. Rc4 {[%emt 0:00:50]} Rb8 {[%emt 0:02:24]} 43. Qc3 {[%emt 0:00:53]} Qxc3 {[%emt 0:00:23]} 44. Rxc3 {[%emt 0:00:05]} Rb7 {[%emt 0:00:06]} 45. g3 {[%emt 0:00:24]} Rd7 {[%emt 0:00:13]} 46. Rc5 {[%emt 0:00:17]} Ra7 {[%emt 0:00:18]} 47. Ne4 {[%emt 0:00:26]} Ra6 {[%emt 0:00:22]} 48. Nd2 {[%emt 0:00:13]} a4 {[%emt 0:00:18]} 49. b4 {[%emt 0:00:31]} a3 {[%emt 0:00:37]} 50. Nc4 {[%emt 0:00:09]} Kf6 {[%emt 0:00:14]} 51. b5 {[%emt 0:00:25]} Ra4 {[%emt 0:00:12]} 52. Rc7 {[%emt 0:00:29]} Rb4 {[%emt 0:00:25]} 53. Nxa3 {[%emt 0:00:23]} Rb2 {[%emt 0:00:07]} 54. Nc4 {[%emt 0:00:13]} Rxa2 {[%emt 0:00:10]} 55. b6 {[%emt 0:00:10]} Ra1+ {[%emt 0:00:04]} 56. Kg2 {[%emt 0:00:04]} Rb1 {[%emt 0:00:06]} 57. b7 {[%emt 0:00:07]} Rb5 {[%emt 0:00:26]} 58. Nd6 {[%emt 0:00:07]} Rb6 {[%emt 0:00:10]} 59. Rc8 {[%emt 0:00:08]} Ke7 {[%emt 0:00:13]} 60. b8=Q {[%emt 0:00:09]} Rxb8 {[%emt 0:00:06]} 61. Rxb8 {[%emt 0:01:03]} Kxd6 {[%emt 0:00:04]} 62. Kf3 {[%emt 0:00:07]} Ke5 {[%emt 0:00:09]} 63. Rb5+ {[%emt 0:00:08]} Kf6 {[%emt 0:00:05]} 64. Ke4 {[%emt 0:00:07]} Kg7 {[%emt 0:00:25]} 65. g4 {[%emt 0:00:13]} f5+ {[%emt 0:00:20]} 66. gxf5 {[%emt 0:00:05]} exf5+ {[%emt 0:00:04]} 67. Kf4 {[%emt 0:00:07]} Kh6 {[%emt 0:00:06]} 68. Rb6 {[%emt 0:00:11]} Kh7 {[%emt 0:00:07]} 69. Kg5 {[%emt 0:00:06]} f4 {[%emt 0:00:09]} 70. Rxg6 {[%emt 0:00:18]} Kh8 {[%emt 0:00:13]} 71. Rb6 {[%emt 0:00:10]} Kh7 {[%emt 0:00:14]} 72. Rb7+ {[%emt 0:00:11]} Kg8 {[%emt 0:00:09]} 73. Kf6 {[%emt 0:00:12]} f3 {[%emt 0:00:10]} 74. h5 {[%emt 0:00:08]} Kh8 {[%emt 0:00:12]} 75. Kg6 {[%emt 0:00:06]} Kg8 {[%emt 0:00:04]} 76. Rb8# {[%emt 0:00:07]} 1-0

[Event "EYCC Girls-U12 2019"]
[Site "Bratislava"]
[Date "2019.08.10"]
[Round "9.14"]
[White "Arora, Tashika"]
[Black "Fileru, Maria"]
[Result "0-1"]
[ECO "D02"]
[WhiteElo "1447"]
[BlackElo "1602"]
[Annotator "NA RC"]
[PlyCount "144"]
[EventDate "2019.08.02"]
[EventType "swiss"]
[EventCountry "SVK"]
[SourceTitle "playchess.com"]
[Source "ChessBase"]
[SourceQuality "1"]
[TimeControl "40/5400+30:1800+30"]

1. d4 {[%emt 0:00:00]} d5 {[%emt 0:00:00]} 2. Nf3 {[%emt 0:00:00]} e6 {[%emt 0:00:00]} 3. Bf4 {[%emt 0:00:00]} Nf6 {[%emt 0:00:00]} 4. e3 {[%emt 0:00:00]} c5 {[%emt 0:00:07]} 5. Be2 {[%emt 0:00:32]} Nc6 {[%emt 0:00:45]} 6. O-O {[%emt 0:00:13]} Bd6 {[%emt 0:00:12]} 7. Bxd6 {[%emt 0:00:44]} Qxd6 {[%emt 0:00:03]} 8. c4 {[%emt 0:00:35]} O-O {[%emt 0:03:45]} 9. Nc3 {[%emt 0:00:38]} Rd8 {[%emt 0:05:32]} 10. dxc5 {[%emt 0:04:08]} Qxc5 {[%emt 0:00:30]} 11. cxd5 {[%emt 0:01:08]} Nxd5 {[%emt 0:01:53]} 12. Ne4 {[%emt 0:01:44]} Qb4 {[%emt 0:08:12]} 13. Qc2 {[%emt 0:02:53]} Bd7 {[%emt 0:04:46]} 14. a3 {[%emt 0:03:45]} Qb6 {[%emt 0:04:59]} 15. Nc5 {[%emt 0:01:28]} Rac8 {[%emt 0:01:11]} 16. Nxd7 {[%emt 0:01:17]} Rxd7 {[%emt 0:00:11]} 17. Ne5 {[%emt 0:02:41]} Rdd8 {[%emt 0:04:11]} 18. Nc4 {[%emt 0:05:25]} Qc5 {[%emt 0:01:05]} 19. b4 {[%emt 0:01:28]} Qe7 {[%emt 0:01:54]} 20. Qb3 {[%emt 0:03:03]} b5 {[%emt 0:01:00]} 21. Nb2 {[%emt 0:02:07]} Qb7 {[%emt 0:10:14]} 22. Nd3 {[%emt 0:02:34]} a5 {[%emt 0:01:53]} 23. Rfc1 {[%emt 0:06:28]} Qb6 {[%emt 0:03:58]} 24. e4 {[%emt 0:03:28]} Nd4 {[%emt 0:01:28]} 25. Qb2 {[%emt 0:01:47]} Nc3 {[%emt 0:01:19]} 26. Bf1 {[%emt 0:07:23]} Nxe4 {[%emt 0:04:25]} 27. g3 {[%emt 0:05:05]} Nd2 {[%emt 0:05:04]} 28. Nc5 {[%emt 0:04:25]} a4 {[%emt 0:06:39]} 29. Rd1 {[%emt 0:02:11]} N4f3+ {[%emt 0:02:26]} 30. Kh1 {[%emt 0:02:17]} Nxf1 {[%emt 0:01:05]} 31. Rxf1 {[%emt 0:00:10]} Qc6 {[%emt 0:01:21]} 32. Qe2 {[%emt 0:09:19]} Nd2+ {[%emt 0:02:53]} 33. f3 {[%emt 0:00:51]} Nxf1 {[%emt 0:00:21]} 34. Rxf1 {[%emt 0:00:14]} Rd5 {[%emt 0:00:34]} 35. Rd1 {[%emt 0:02:02]} Rxd1+ {[%emt 0:03:05]} 36. Qxd1 {[%emt 0:00:07]} Qd5 {[%emt 0:00:20]} 37. Qxd5 {[%emt 0:00:56]} exd5 {[%emt 0:00:01]} 38. Kg2 {[%emt 0:00:16]} Re8 {[%emt 0:00:49]} 39. Kf2 {[%emt 0:00:36]} d4 {[%emt 0:04:21]} 40. Ne4 {[%emt 0:00:00]} d3 {[%emt 0:00:00]} 41. g4 {[%emt 0:05:36]} Rd8 {[%emt 0:02:49]} 42. Ke1 {[%emt 0:00:48]} f6 {[%emt 0:03:31]} 43. Kd2 {[%emt 0:00:26]} Kf7 {[%emt 0:02:04]} 44. Nc5 {[%emt 0:00:17]} Rd4 {[%emt 0:00:38]} 45. Nxd3 {[%emt 0:00:45]} Ke6 {[%emt 0:02:10]} 46. h4 {[%emt 0:00:55]} f5 {[%emt 0:02:00]} 47. Ke3 {[%emt 0:01:28]} Rc4 {[%emt 0:01:11]} 48. Nf4+ {[%emt 0:01:04]} Ke5 {[%emt 0:01:25]} 49. Nd3+ {[%emt 0:00:12]} Kf6 {[%emt 0:00:44]} 50. g5+ {[%emt 0:00:21]} Ke6 {[%emt 0:01:01]} 51. Nf4+ {[%emt 0:01:26]} Kd6 {[%emt 0:00:57]} 52. h5 {[%emt 0:08:19]} Rc3+ {[%emt 0:04:10]} 53. Kd4 {[%emt 0:04:29]} Rxf3 {[%emt 0:01:14]} 54. Nd3 {[%emt 0:00:46]} Rh3 {[%emt 0:04:07]} 55. Nf4 {[%emt 0:02:49]} Rxa3 {[%emt 0:03:02]} 56. Nd3 {[%emt 0:00:46]} Rxd3+ {[%emt 0:00:25]} 57. Kxd3 {[%emt 0:00:06]} Kd5 {[%emt 0:00:33]} 58. g6 {[%emt 0:00:31]} h6 {[%emt 0:00:42]} 59. Kc3 {[%emt 0:00:43]} f4 {[%emt 0:00:23]} 60. Kd3 {[%emt 0:00:17]} a3 {[%emt 0:00:18]} 61. Kc3 {[%emt 0:01:05]} f3 {[%emt 0:00:07]} 62. Kd3 {[%emt 0:00:31]} a2 {[%emt 0:00:09]} 63. Ke3 {[%emt 0:00:07]} a1=Q {[%emt 0:00:10]} 64. Kxf3 {[%emt 0:00:09]} Qd4 {[%emt 0:00:13]} 65. Kg3 {[%emt 0:00:32]} Qe4 {[%emt 0:00:11]} 66. Kf2 {[%emt 0:00:27]} Qd3 {[%emt 0:00:05]} 67. Kg2 {[%emt 0:00:08]} Ke4 {[%emt 0:00:03]} 68. Kh2 {[%emt 0:00:17]} Kf4 {[%emt 0:00:08]} 69. Kg2 {[%emt 0:00:11]} Kg4 {[%emt 0:00:15]} 70. Kf2 {[%emt 0:00:10]} Qd2+ {[%emt 0:00:07]} 71. Kf1 {[%emt 0:00:10]} Kg3 {[%emt 0:00:10]} 72. Kg1 {[%emt 0:00:03]} Qe1# {[%emt 0:00:06]} 0-1

[Event "EYCC Girls-U12 2019"]
[Site "Bratislava"]
[Date "2019.08.10"]
[Round "9.15"]
[White "Helliesen, Lykke-Merlot"]
[Black "Lomakina, Anzhelika"]
[Result "0-1"]
[ECO "E20"]
[WhiteElo "1505"]
[BlackElo "1752"]
[Annotator "NA RC"]
[PlyCount "151"]
[EventDate "2019.08.02"]
[EventType "swiss"]
[EventCountry "SVK"]
[SourceTitle "playchess.com"]
[Source "ChessBase"]
[SourceQuality "1"]
[TimeControl "40/5400+30:1800+30"]

1. d4 {[%emt 0:00:00]} Nf6 {[%emt 0:00:00]} 2. c4 {[%emt 0:00:00]} e6 {[%emt 0:00:00]} 3. Nc3 {[%emt 0:00:00]} Bb4 {[%emt 0:00:00]} 4. f3 {[%emt 0:00:01]} b6 {[%emt 0:11:39]} 5. e4 {[%emt 0:00:45]} Ba6 {[%emt 0:02:26]} 6. Bg5 {[%emt 0:03:07]} Qc8 {[%emt 0:03:07]} 7. Bd3 {[%emt 0:04:20]} Nc6 {[%emt 0:10:07]} 8. Nge2 {[%emt 0:08:18]} Na5 {[%emt 0:01:50]} 9. b3 {[%emt 0:08:55]} Nc6 {[%emt 0:09:25]} 10. Qc2 {[%emt 0:04:17]} e5 {[%emt 0:02:45]} 11. dxe5 {[%emt 0:05:52]} Nxe5 {[%emt 0:00:19]} 12. O-O {[%emt 0:02:17]} Qb7 {[%emt 0:09:39]} 13. a3 {[%emt 0:06:51]} Be7 {[%emt 0:02:59]} 14. f4 {[%emt 0:02:40]} Neg4 {[%emt 0:01:57]} 15. Rf3 {[%emt 0:03:04]} Bc5+ {[%emt 0:05:06]} 16. Kh1 {[%emt 0:03:08]} Nf2+ {[%emt 0:04:02]} 17. Rxf2 {[%emt 0:02:11]} Bxf2 {[%emt 0:00:12]} 18. Bxf6 {[%emt 0:08:18]} gxf6 {[%emt 0:01:05]} 19. Nd1 {[%emt 0:00:46]} Bh4 {[%emt 0:09:07]} 20. g3 {[%emt 0:00:21]} Bxg3 {[%emt 0:00:50]} 21. Nxg3 {[%emt 0:02:05]} O-O-O {[%emt 0:00:21]} 22. Nc3 {[%emt 0:01:28]} Qc6 {[%emt 0:01:57]} 23. Nd5 {[%emt 0:01:33]} Kb8 {[%emt 0:03:08]} 24. Qc3 {[%emt 0:02:26]} Bb7 {[%emt 0:02:36]} 25. Nxf6 {[%emt 0:01:58]} a6 {[%emt 0:04:20]} 26. Nd5 {[%emt 0:04:32]} Qc5 {[%emt 0:01:50]} 27. b4 {[%emt 0:05:11]} Qc6 {[%emt 0:02:22]} 28. Nf5 {[%emt 0:01:56]} h5 {[%emt 0:01:57]} 29. Rg1 {[%emt 0:02:07]} Qe6 {[%emt 0:01:18]} 30. Rg5 {[%emt 0:07:16]} h4 {[%emt 0:02:00]} 31. h3 {[%emt 0:01:43]} Rhg8 {[%emt 0:00:48]} 32. Rh5 {[%emt 0:02:11]} Qg6 {[%emt 0:02:35]} 33. Rg5 {[%emt 0:00:26]} Qe6 {[%emt 0:00:07]} 34. Rg7 {[%emt 0:01:47]} b5 {[%emt 0:01:01]} 35. Rxg8 {[%emt 0:05:02]} Rxg8 {[%emt 0:00:11]} 36. Qd4 {[%emt 0:00:31]} bxc4 {[%emt 0:02:53]} 37. Bxc4 {[%emt 0:00:22]} Qg6 {[%emt 0:00:42]} 38. Qf2 {[%emt 0:00:18]} Qe6 {[%emt 0:00:59]} 39. Qd4 {[%emt 0:00:53]} Qg6 {[%emt 0:00:23]} 40. Qf2 {[%emt 0:00:00]} Qe6 {[%emt 0:00:00]} 41. Qe2 {[%emt 0:12:15]} Re8 {[%emt 0:04:44]} 42. Nxh4 {[%emt 0:14:34]} Bxd5 {[%emt 0:03:50]} 43. Bxd5 {[%emt 0:02:22]} Qxd5 {[%emt 0:00:54]} 44. exd5 {[%emt 0:00:25]} Rxe2 {[%emt 0:00:08]} 45. Ng2 Rd2 {[%emt 0:01:11]} 46. Kh2 {[%emt 0:02:10]} Rxd5 {[%emt 0:01:25]} 47. h4 {[%emt 0:01:21]} Kc8 {[%emt 0:01:22]} 48. Kg3 {[%emt 0:00:33]} Kd8 {[%emt 0:01:57]} 49. Kg4 {[%emt 0:00:35]} Ke7 {[%emt 0:01:44]} 50. h5 {[%emt 0:00:32]} Kf6 {[%emt 0:01:28]} 51. Nh4 {[%emt 0:00:39]} Rd1 {[%emt 0:03:14]} 52. h6 {[%emt 0:00:54]} d5 {[%emt 0:01:55]} 53. Kh5 {[%emt 0:00:41]} d4 {[%emt 0:00:42]} 54. Kg4 {[%emt 0:00:25]} d3 {[%emt 0:00:38]} 55. Kf3 {[%emt 0:00:37]} d2 {[%emt 0:00:30]} 56. h7 {[%emt 0:00:28]} Kg7 {[%emt 0:01:24]} 57. Nf5+ {[%emt 0:00:16]} Kxh7 {[%emt 0:00:17]} 58. Ke2 {[%emt 0:00:04]} Rf1 {[%emt 0:01:15]} 59. Kxd2 {[%emt 0:00:08]} Rxf4 {[%emt 0:00:06]} 60. Ne3 {[%emt 0:00:36]} Kg6 {[%emt 0:00:30]} 61. Kd3 {[%emt 0:00:16]} Rf3 {[%emt 0:00:52]} 62. Ke4 {[%emt 0:00:17]} Rxe3+ {[%emt 0:00:51]} 63. Kxe3 {[%emt 0:00:11]} Kg5 {[%emt 0:00:33]} 64. a4 {[%emt 0:00:58]} f5 {[%emt 0:00:43]} 65. b5 {[%emt 0:00:36]} a5 {[%emt 0:00:27]} 66. Kf3 {[%emt 0:01:12]} f4 {[%emt 0:00:06]} 67. Kf2 {[%emt 0:00:25]} Kf5 {[%emt 0:00:07]} 68. Kf3 {[%emt 0:00:08]} Ke5 {[%emt 0:00:08]} 69. Kf2 {[%emt 0:00:34]} Ke4 {[%emt 0:00:39]} 70. Ke2 {[%emt 0:00:10]} f3+ {[%emt 0:00:24]} 71. Kf2 {[%emt 0:00:06]} Kf4 {[%emt 0:00:04]} 72. Kf1 {[%emt 0:00:15]} Ke3 {[%emt 0:00:03]} 73. Ke1 {[%emt 0:00:13]} Kd3 {[%emt 0:00:25]} 74. Kf2 {[%emt 0:00:17]} Kc3 {[%emt 0:00:03]} 75. Kxf3 {[%emt 0:00:15]} Kb4 {[%emt 0:00:03]} 76. Ke4 {[%emt 0:00:17] Kxb5 axb5} 0-1

[Event "EYCC Girls-U12 2019"]
[Site "Bratislava"]
[Date "2019.08.10"]
[Round "9.16"]
[White "Kapicakova, Lucia"]
[Black "Karavitaki, Antonia"]
[Result "1/2-1/2"]
[ECO "A05"]
[WhiteElo "1671"]
[BlackElo "1481"]
[Annotator "NA RC"]
[PlyCount "52"]
[EventDate "2019.08.02"]
[EventType "swiss"]
[EventCountry "SVK"]
[SourceTitle "playchess.com"]
[Source "ChessBase"]
[SourceQuality "1"]
[TimeControl "40/5400+30:1800+30"]

1. Nf3 {[%emt 0:00:00]} Nf6 {[%emt 0:00:00]} 2. g3 {[%emt 0:00:00]} g6 {[%emt 0:00:00]} 3. b3 {[%emt 0:00:00]} Bg7 {[%emt 0:00:00]} 4. Bb2 {[%emt 0:00:00]} b6 {[%emt 0:00:00]} 5. Bg2 {[%emt 0:00:26]} Bb7 {[%emt 0:00:06]} 6. O-O {[%emt 0:00:54]} O-O {[%emt 0:00:12]} 7. c4 {[%emt 0:02:23]} c5 {[%emt 0:00:43]} 8. d3 {[%emt 0:05:15]} d5 {[%emt 0:07:08]} 9. cxd5 {[%emt 0:02:16]} Qxd5 {[%emt 0:04:02]} 10. Nc3 {[%emt 0:08:51]} Qd7 {[%emt 0:02:30]} 11. d4 {[%emt 0:11:06]} cxd4 {[%emt 0:01:59]} 12. Nxd4 {[%emt 0:01:35]} Bxg2 {[%emt 0:01:46]} 13. Kxg2 {[%emt 0:00:21]} Rd8 {[%emt 0:01:42]} 14. Nf3 {[%emt 0:12:07]} Nc6 {[%emt 0:05:43]} 15. Qxd7 {[%emt 0:03:35]} Rxd7 {[%emt 0:00:29]} 16. Rad1 {[%emt 0:02:22]} Rad8 {[%emt 0:02:04]} 17. Rxd7 {[%emt 0:02:53]} Rxd7 {[%emt 0:00:22]} 18. Rd1 {[%emt 0:01:37]} Rxd1 {[%emt 0:03:32]} 19. Nxd1 {[%emt 0:00:27]} b5 {[%emt 0:04:13]} 20. Nd4 {[%emt 0:04:59]} Nxd4 {[%emt 0:01:31]} 21. Bxd4 {[%emt 0:02:34]} a6 {[%emt 0:00:32]} 22. Nc3 {[%emt 0:01:03]} e6 {[%emt 0:02:15]} 23. Kf3 {[%emt 0:07:12]} Nd7 {[%emt 0:02:14]} 24. Bxg7 {[%emt 0:01:24]} Kxg7 {[%emt 0:00:07]} 25. Ke4 {[%emt 0:01:10]} f5+ {[%emt 0:03:36]} 26. Kd4 {[%emt 0:02:59]} Kf6 {[%emt 0:00:51]} 1/2-1/2

[Event "EYCC Girls-U12 2019"]
[Site "Bratislava"]
[Date "2019.08.10"]
[Round "9.17"]
[White "Gasimova, Samra"]
[Black "Putinceva, Marina"]
[Result "1/2-1/2"]
[ECO "A52"]
[WhiteElo "1695"]
[BlackElo "1476"]
[Annotator "NA RC"]
[PlyCount "46"]
[EventDate "2019.08.02"]
[EventType "swiss"]
[EventCountry "SVK"]
[SourceTitle "playchess.com"]
[Source "ChessBase"]
[SourceQuality "1"]
[TimeControl "40/5400+30:1800+30"]

1. d4 {[%emt 0:00:00]} Nf6 {[%emt 0:00:00]} 2. c4 {[%emt 0:00:00]} e5 {[%emt 0:00:00]} 3. dxe5 {[%emt 0:00:15]} Ng4 {[%emt 0:00:29]} 4. e3 {[%emt 0:00:48]} Nxe5 {[%emt 0:00:38]} 5. f4 {[%emt 0:00:14]} Nec6 {[%emt 0:01:06]} 6. Nf3 {[%emt 0:00:55]} Bb4+ {[%emt 0:01:42]} 7. Bd2 {[%emt 0:00:27]} Bxd2+ {[%emt 0:00:46]} 8. Qxd2 {[%emt 0:01:32]} Na6 {[%emt 0:06:01]} 9. Nc3 {[%emt 0:05:47]} Nc5 {[%emt 0:17:58]} 10. g3 {[%emt 0:08:16]} d6 {[%emt 0:03:02]} 11. Bg2 {[%emt 0:02:39]} O-O {[%emt 0:03:20]} 12. O-O {[%emt 0:00:14]} Be6 {[%emt 0:02:14]} 13. b3 {[%emt 0:01:09]} Qd7 {[%emt 0:03:48]} 14. Ng5 {[%emt 0:11:33]} h6 {[%emt 0:06:11]} 15. Nge4 {[%emt 0:00:28]} Nxe4 {[%emt 0:01:38]} 16. Bxe4 {[%emt 0:00:28]} f5 {[%emt 0:05:27]} 17. Bf3 {[%emt 0:00:32]} Rae8 {[%emt 0:01:10]} 18. Rae1 {[%emt 0:02:03]} b6 {[%emt 0:03:03]} 19. Re2 {[%emt 0:08:56]} Ne7 {[%emt 0:07:26]} 20. Rfe1 {[%emt 0:05:04]} Kh8 {[%emt 0:03:08]} 21. Nd5 {[%emt 0:19:43]} Bxd5 {[%emt 0:03:37]} 22. cxd5 {[%emt 0:01:30]} Ng8 {[%emt 0:04:36]} 23. e4 {[%emt 0:03:00]} fxe4 {[%emt 0:00:49]} 1/2-1/2

[Event "EYCC Girls-U12 2019"]
[Site "Bratislava"]
[Date "2019.08.10"]
[Round "9.18"]
[White "Dubovik, Maria"]
[Black "Sala, Giulia"]
[Result "1-0"]
[ECO "C77"]
[WhiteElo "1504"]
[BlackElo "1623"]
[Annotator "NA RC"]
[PlyCount "67"]
[EventDate "2019.08.02"]
[EventType "swiss"]
[EventCountry "SVK"]
[SourceTitle "playchess.com"]
[Source "ChessBase"]
[SourceQuality "1"]
[TimeControl "40/5400+30:1800+30"]

1. e4 {[%emt 0:00:00]} e5 {[%emt 0:00:00]} 2. Nf3 {[%emt 0:00:00]} Nc6 {[%emt 0:00:02]} 3. Bb5 {[%emt 0:00:04]} a6 {[%emt 0:00:38]} 4. Ba4 {[%emt 0:00:06]} Nf6 {[%emt 0:02:01]} 5. d3 {[%emt 0:00:09]} b5 {[%emt 0:00:29]} 6. Bb3 {[%emt 0:00:07]} Bb7 {[%emt 0:00:58]} 7. O-O {[%emt 0:00:20]} Bc5 {[%emt 0:00:43]} 8. c3 {[%emt 0:00:09]} Bb6 {[%emt 0:03:19]} 9. Bg5 {[%emt 0:00:17]} h6 {[%emt 0:01:06]} 10. Bh4 {[%emt 0:00:20]} d6 {[%emt 0:04:32]} 11. Re1 {[%emt 0:02:26]} O-O {[%emt 0:05:11]} 12. Nbd2 {[%emt 0:02:25]} Qe7 {[%emt 0:02:36]} 13. Nf1 {[%emt 0:00:24]} Bc8 {[%emt 0:06:16]} 14. d4 {[%emt 0:01:49]} exd4 {[%emt 0:24:48]} 15. cxd4 {[%emt 0:00:52]} g5 {[%emt 0:01:21]} 16. Bg3 {[%emt 0:02:24]} Bg4 {[%emt 0:05:36]} 17. Bd5 {[%emt 0:05:25]} Bxf3 {[%emt 0:05:07]} 18. gxf3 {[%emt 0:00:26]} Qd7 {[%emt 0:04:10]} 19. Bxc6 {[%emt 0:00:27]} Qxc6 {[%emt 0:00:02]} 20. Rc1 {[%emt 0:00:10]} Qd7 {[%emt 0:00:20]} 21. Ne3 {[%emt 0:00:26]} Kh8 {[%emt 0:10:16]} 22. Nf5 {[%emt 0:01:33]} h5 {[%emt 0:00:29]} 23. h4 {[%emt 0:01:28]} g4 {[%emt 0:01:16]} 24. Qd2 {[%emt 0:04:25]} Rg8 {[%emt 0:01:12]} 25. Qh6+ {[%emt 0:01:54]} Nh7 {[%emt 0:00:49]} 26. Qxh5 {[%emt 0:00:46]} gxf3 {[%emt 0:02:05]} 27. Qxf3 {[%emt 0:01:00]} Rg6 {[%emt 0:01:34]} 28. Kh2 {[%emt 0:01:27]} Rag8 {[%emt 0:01:22]} 29. e5 {[%emt 0:02:20]} dxe5 {[%emt 0:02:22]} 30. Bxe5+ {[%emt 0:00:28]} f6 {[%emt 0:00:27]} 31. Bg3 {[%emt 0:00:07]} Rg4 {[%emt 0:02:35]} 32. Nh6 {[%emt 0:00:57]} Rxg3 {[%emt 0:00:48]} 33. fxg3 {[%emt 0:00:16]} Rg7 {[%emt 0:01:19]} 34. Qa8+ {[%emt 0:00:59]} 1-0

[Event "EYCC Girls-U12 2019"]
[Site "Bratislava"]
[Date "2019.08.10"]
[Round "9.19"]
[White "Muradyan, Anahit"]
[Black "Orian, Noga"]
[Result "1-0"]
[ECO "E06"]
[WhiteElo "1353"]
[BlackElo "1628"]
[Annotator "NA RC"]
[PlyCount "63"]
[EventDate "2019.08.02"]
[EventType "swiss"]
[EventCountry "SVK"]
[SourceTitle "playchess.com"]
[Source "ChessBase"]
[SourceQuality "1"]
[TimeControl "40/5400+30:1800+30"]

1. d4 {[%emt 0:00:00]} d5 {[%emt 0:00:00]} 2. c4 {[%emt 0:00:00]} e6 {[%emt 0:00:00]} 3. Nf3 {[%emt 0:00:06]} Be7 {[%emt 0:00:09]} 4. g3 {[%emt 0:00:49]} Nf6 {[%emt 0:00:15]} 5. Bg2 {[%emt 0:00:12]} O-O {[%emt 0:00:22]} 6. O-O {[%emt 0:01:19]} b6 {[%emt 0:01:36]} 7. cxd5 {[%emt 0:00:24]} exd5 {[%emt 0:00:11]} 8. Qc2 {[%emt 0:01:08]} Bb7 {[%emt 0:00:43]} 9. Nc3 {[%emt 0:03:35]} c6 {[%emt 0:04:33]} 10. Rd1 {[%emt 0:02:13]} Nbd7 {[%emt 0:01:13]} 11. e4 {[%emt 0:06:20]} Nxe4 {[%emt 0:01:41]} 12. Nxe4 {[%emt 0:00:08]} dxe4 {[%emt 0:00:04]} 13. Qxe4 {[%emt 0:00:34]} Nf6 {[%emt 0:00:17]} 14. Qc2 {[%emt 0:01:16]} Nd5 {[%emt 0:05:05]} 15. a3 {[%emt 0:05:50]} Bf6 {[%emt 0:05:44]} 16. b4 {[%emt 0:11:40]} a5 {[%emt 0:06:17]} 17. bxa5 {[%emt 0:04:50]} Rxa5 {[%emt 0:00:29]} 18. Bb2 {[%emt 0:01:25]} Qd6 {[%emt 0:06:55]} 19. Nd2 {[%emt 0:03:15]} Ra7 {[%emt 0:16:01]} 20. Nc4 {[%emt 0:01:24]} Qc7 {[%emt 0:02:54]} 21. Ne5 {[%emt 0:04:11]} Bxe5 {[%emt 0:03:44]} 22. dxe5 {[%emt 0:00:29]} Ne7 {[%emt 0:00:47]} 23. Be4 {[%emt 0:02:06]} h6 {[%emt 0:01:13]} 24. Qc3 {[%emt 0:02:40]} Rd8 {[%emt 0:04:48]} 25. Rxd8+ {[%emt 0:01:15]} Qxd8 {[%emt 0:00:08]} 26. e6 {[%emt 0:00:42]} f6 {[%emt 0:00:31]} 27. Qf3 {[%emt 0:01:36]} Qf8 {[%emt 0:11:08]} 28. Rd1 {[%emt 0:05:31]} Ra8 {[%emt 0:12:13]} 29. Rd7 {[%emt 0:06:20]} Rb8 {[%emt 0:01:47]} 30. Qf4 {[%emt 0:01:44]} Ba8 {[%emt 0:06:40]} 31. Rxe7 {[%emt 0:00:50]} Qxe7 {[%emt 0:01:18]} 32. Qxb8+ {[%emt 0:00:04]} 1-0